Cogmind - Beta 16 @@@ ROGUE MODE // 2025.12.27 @ 23:02:33 Player: Bity Result: Destroyed by CU-YSM(R) with Subdweller Machine Gun Performance ------------- Evolutions (0) 0 Regions Visited (2) 400 Robots Destroyed (34) 170 Value Destroyed (835) 835 Prototype IDs (12) 240 Alien Tech Used (0) 0 Bonus (0) 0 TOTAL SCORE: 1645 Bonus ------- None Cogmind --------- Core Integrity 0/250 Matter 69/300 Energy 180/180 System Corruption 1% Temperature Cool (0) Movement Rolling (120) Ox1 Location -10/Subcaves Parts ------- > --- POWER (1) -------- Meta Core > --- PROPULSION (2+1) - Improved Treads (+) Subdweller Monowheel > --- UTILITY (2) ------ Large Storage Unit Signal Interpreter > --- WEAPON (2) ------- Battle Cannon Battle Cannon > --- INVENTORY (15) --- Light Ion Engine Light Treads Light Treads Improved Treads Improved Treads Subdweller Monowheel VTOL Module VTOL Module VTOL Module VTOL Module Weight Redist. System Visual Processing Unit Transport Network Coupler Subdweller Laser Makeshift Sword Peak State ------------ > --- POWER ------------ Meta Core > --- PROPULSION ------- Improved Treads Improved Treads Improved Treads > --- UTILITY ---------- Large Storage Unit Subdweller Optics Signal Interpreter > --- WEAPON ----------- Beam Rifle Heavy Assault Rifle Battle Cannon > --- INVENTORY -------- Light Ion Engine Light Treads Light Treads Wheel Subdweller Monowheel VTOL Module VTOL Module VTOL Module VTOL Module Weight Redist. System Visual Processing Unit Transport Network Coupler [Rating: 30] Favorites ----------- Power Ion Engine Engine Ion Engine Power Core Meta Core Propulsion Improved Treads Treads Improved Treads Leg Aluminum Leg Wheel Wheel Flight Unit VTOL Module Utility Large Storage Unit Device Weight Redist. System Storage Large Storage Unit Processor Signal Interpreter Weapon Heavy Assault Rifle Energy Gun Beam Rifle Ballistic Gun Heavy Assault Rifle Ballistic Cannon Battle Cannon Special Weapon Mining Laser Special Melee Weapon Datajack Build | -11 -10 -10 ------- Run | Yrd Mat Sub Slots Evolved . | . . . Power . | . . . Propulsion . | . . . Utility . | . . . Weapon . | . . . Parts Attached 36 | 1 23 12 Power 6 | . 4 2 Engine 5 | . 4 1 Core 1 | . . 1 Reactor . | . . . Propulsion 12 | . 9 3 Treads 4 | . 3 1 Leg 2 | . 2 . Wheel 4 | . 2 2 Hover . | . . . Flight 2 | . 2 . Utility 6 | 1 3 2 Device 4 | 1 2 1 Storage 1 | . 1 . Processor 1 | . . 1 Hackware . | . . . Protection . | . . . Artifact . | . . . Weapon 12 | . 7 5 Energy Gun 5 | . 4 1 Energy Cannon . | . . . Ballistic Gun 2 | . 1 1 Ballistic Cannon 2 | . . 2 Launcher . | . . . Special Weapon 2 | . 1 1 Impact Weapon . | . . . Slashing Weapon . | . . . Piercing Weapon . | . . . Special Melee Weapon 1 | . 1 . Unidentified Prototypes . | . . . Parts Lost 18 | . 13 5 Power 3 | . 2 1 Propulsion 4 | . 3 1 Utility 2 | . 2 . Weapon 9 | . 6 3 Highest Loss Streak 4 | . 4 1 To Critical Strikes 1 | . . 1 Average Backups 12 | 6 11 13 Power 1 | 1 1 1 Propulsion 7 | 4 5 8 Utility 3 | . 4 3 Weapon . | 1 1 . Tool/Special . | . . . Unused Backups 26 | 7 9 10 Power 1 | 1 . . Propulsion 14 | 3 6 5 Utility 6 | 1 2 3 Weapon 5 | 2 1 2 Tool/Special . | . . . Average Slot Usage (%) 90 | . 75 98 Engine 10 | . 11 9 Core 2 | . . 3 Treads 20 | . 12 24 Leg 4 | . 12 . Wheel 3 | . 1 4 Device 7 | . 7 7 Storage 13 | . 14 12 Processor 5 | . . 7 Energy Gun 9 | . 4 12 Ballistic Gun 9 | . 7 9 Ballistic Cannon 3 | . . 4 Peak Build Rating 30 | 7 11 30 Average Rating 14 | 6 7 18 On Entrance 7 | 6 7 9 Avg Prop Armor Cover (%) 12 | . . 12 Naked Turns . | . . . Heaviest Build 37 | 12 30 37 Greatest Support 69 | 20 46 69 Greatest Overweight (x) 3 | . 2 3 Average Overweight (x) . | . . . Largest Inventory Capacity 15 | 8 15 15 Average Capacity 14 | 8 13 15 Most Carried 15 | 8 15 15 Average Carried 12 | 6 11 13 Final Capacity 15 | 8 15 15 Final Carried 15 | 8 15 15 Class Distribution -------------------- 88% | Mutant 6% | Skirmisher 4% | Scavenger-Skirmisher Dominant Class ---------------- Mutant | -10/Materials Mutant | -10/Subcaves Resources | -11 -10 -10 ----------- Run | Yrd Mat Sub Matter Collected 884 | 267 195 422 Remotely 38 | . 38 . Salvage Created 1058 | 154 578 326 Parts 77 | 12 37 28 Haulers Intercepted 2 | . 2 . Recyclers Shooed . | . . . Parts Field Recycled . | . . . Retrieved Matter . | . . . Parts Self-Destructed 10 | . . 10 Prevented . | . . . Parts Restored . | . . . Kills | -11 -10 -10 ------- Run | Yrd Mat Sub Combat Hostiles Destroyed 24 | . 14 10 Melee 3 | . 3 . Guns 19 | . 10 9 Cannons 1 | . . 1 AOE 1 | . 1 . Classes Destroyed 11 | 3 5 3 Worker 1 | 1 . . Tunneler 3 | 3 . . Hauler 2 | . 2 . Recycler 1 | 1 . . Operator 1 | . 1 . Watcher 2 | . 2 . Swarmer 6 | . 3 3 Grunt 11 | . 11 . Sentry 1 | . . 1 Artisan 1 | . . 1 Subdweller 6 | . . 6 Best Kill Streak 6 | 2 6 3 Combat Bots Only 6 | . 6 3 Max Kills in Single Turn 2 | 1 2 1 Gunslinging . | . . . Exploded 1 | . 1 . Melee 1 | . 1 . Uniques/NPCs Destroyed . | . . . Combat | -11 -10 -10 -------- Run | Yrd Mat Sub Hostile Shots Fired 209 | . 139 70 Missed 66 | . 42 24 Hits 143 | . 97 46 Projectile 143 | . 97 46 Critical Strikes 2 | . . 2 Damage Taken 1885 | . 1153 732 Core 256 | . 148 108 Absorbed by Shields . | . . . Core Remaining (%) 100 | 100 . . Volleys Fired 220 | 57 62 101 Largest 3 | 1 2 3 Hottest 112 | 20 100 112 Shots Fired 281 | 57 81 143 Gun 223 | 57 80 86 Cannon 55 | . . 55 Launcher . | . . . Special 3 | . 1 2 Kinetic 195 | 57 50 88 Thermal 61 | . 6 55 Explosive . | . . . Electromagnetic 25 | . 25 . Robot Hit Streak 14 | 6 8 14 Robot Miss Streak 4 | 4 3 3 Penetration Max . | . . . Secondary Targets 1 | . 1 . Max Gunslinging Chain 1 | . 1 . Shots Hit Robots 146 | 37 56 53 Core Hits 63 | 12 31 20 Critical Kills . | . . . Critical Parts Destroyed . | . . . Critical Strikes 3 | . . 3 Burn 3 | . . 3 Melee Attacks . | . . . Impact . | . . . Slashing . | . . . Piercing . | . . . Sneak Attacks . | . . . Combat Hostiles . | . . . Follow-up Attacks . | . . . Damage Inflicted 1761 | 253 756 752 Guns 1495 | 253 637 605 Cannons 133 | . . 133 Explosions 80 | . 80 . Melee . | . . . Ramming 43 | . 39 4 Kinetic 840 | 253 279 308 Thermal 570 | . 130 440 Explosive . | . . . Electromagnetic 308 | . 308 . Impact . | . . . Slashing . | . . . Piercing . | . . . Highest Corruption 1 | . . 1 Average Corruption 1 | . . 1 Corruption Purged . | . . . Corruption Blocked . | . . . Effects 11 | . . 11 Message Errors 3 | . . 3 Matter Fused 3 | . . 3 Energy Discharges 1 | . . 1 Data Loss (minor) 1 | . . 1 Misfires 2 | . . 2 Weapon Failures 1 | . . 1 Overload Shots . | . . . Overflow Damage . | . . . Projectiles . | . . . Explosions . | . . . Melee . | . . . Knockbacks 5 | . 2 3 Impact 2 | . 2 . Kinetic 3 | . . 3 Secondary . | . . . Self-Inflicted Damage 4 | . . 4 Shots . | . . . Rammed 15 | . 15 . Targets Rammed 18 | . 18 . Kicked . | . . . Crushed 3 | . 3 . Highest Temperature 191 | . 191 6 Average Temperature 74 | . 75 4 Received Heat Transfer 675 | . 555 120 Siege Activations . | . . . Martial Activations . | . . . Shielding Activations . | . . . Robots Disrupted . | . . . Combat Hostiles . | . . . Robots Corrupted . | . . . Combat Hostiles . | . . . Parts Fried 1 | . 1 . Impact Corruptions . | . . . Robots Melted . | . . . Combat Hostiles . | . . . Parts Melted . | . . . Heat Transferred 1754 | . 298 1456 Parts Sabotaged . | . . . Parts Stolen . | . . . Parts Stripped . | . . . Power Chain Reactions 1 | . 1 . Alert | -11 -10 -10 ------- Run | Yrd Mat Sub Maximum Alert Level . | . . . Low Security (%) 100 | 100 100 . Level 1 . | . . . Level 2 . | . . . Level 3 . | . . . Level 4 . | . . . Level 5 . | . . . High Security . | . . . Max Security . | . . . Peak Influence 96 | 5 96 . Initial . | . . . Average 19 | 1 21 . Influence Increases 548 | 25 433 90 Destroy 0b10 Robot/C 360 | . 280 80 Destroy 0b10 Robot/NC 50 | 25 25 . Destroy Leader 98 | . 88 10 Successful Hack 22 | . 22 . Disable Machine 15 | . 15 . Destroy Structure 3 | . 3 . Influence Decreases 548 | 25 433 90 Time Decay 458 | 25 343 90 Lost Part 90 | . 90 . Squads Dispatched 5 | . 5 . Investigation 3 | . 3 . Extermination . | . . . Reinforcement 2 | . 2 . Assault . | . . . Garrison . | . . . Intercept . | . . . Searches Triggered . | . . . Construction Impeded . | . . . Haulers Reinforced . | . . . Active Scanning Responses . | . . . Cargo Convoy Interrupts . | . . . Stealth | -11 -10 -10 --------- Run | Yrd Mat Sub Distress Signals 1 | . 1 . Communications Jammed . | . . . Distress Signals . | . . . Times Spotted 35 | . 21 14 Peak Tracking Total 6 | . 6 3 Tactical Retreats 1 | . . 1 Traps | -11 -10 -10 ------- Run | Yrd Mat Sub Traps Triggered 2 | . 2 . Indirectly . | . . . Trap Hack Attempts . | . . . Triggered . | . . . Disarmed . | . . . Reprogrammed . | . . . Reused . | . . . Traps Extracted . | . . . Installed . | . . . Triggered . | . . . Machines | -11 -10 -10 ---------- Run | Yrd Mat Sub Machines Disabled 2 | . 1 1 Max in Single Turn 1 | . 1 1 Machines Repaired . | . . . Machines Dismantled . | . . . Machines Sabotaged . | . . . Overloaded Fab Kills . | . . . Hacking | -11 -10 -10 --------- Run | Yrd Mat Sub Machines Accessed 4 | . 3 1 Terminals 3 | . 3 . Fabricators . | . . . Repair Stations . | . . . Recycling Units . | . . . Scanalyzers . | . . . Garrison Access . | . . . Total Hacks 13 | . 12 1 Successful 6 | . 5 1 Failed 7 | . 7 . Catastrophic 1 | . 1 . Database Lockouts . | . . . Manual 11 | . 11 . Terminals 12 | . 12 . Fabricators . | . . . Repair Stations . | . . . Recycling Units . | . . . Scanalyzers . | . . . Garrison Access . | . . . Terminal Hacks 3 | . 2 1 Branch Access Points 1 | . 1 . Locate Traps 1 | . 1 . Proto ID Catalog 1 | . . 1 Fabricator Hacks . | . . . Repair Station Hacks . | . . . Recycling Unit Hacks . | . . . Scanalyzer . | . . . Garrison Access Hacks . | . . . Unauthorized Hacks 3 | . 3 . Terminals 3 | . 3 . Botnet 2 | . 2 . Operators 1 | . 1 . Fabricators . | . . . Repair Stations . | . . . Recycling Units . | . . . Scanalyzers . | . . . Garrison Access . | . . . Data Cores Recovered . | . . . Used . | . . . Hacking Detections 3 | . 3 . Full Trace Events 2 | . 2 . Feedback Events . | . . . Feedback Blocked . | . . . Robot Schematics Acquired . | . . . Robots Built . | . . . Authchips . | . . . Time . | . . . Total Robot Build Rating . | . . . Part Schematics Acquired . | . . . Parts Built . | . . . Authchips . | . . . Time . | . . . Total Part Build Rating . | . . . Part Studies Acquired . | . . . Parts Repaired . | . . . Time . | . . . Parts Recycled . | . . . Recycled Matter . | . . . Retrieved Matter . | . . . Retrieved Components . | . . . Parts Scanalyzed . | . . . Part Schematics Acquired . | . . . Parts Damaged . | . . . Bothacking | -11 -10 -10 ------------ Run | Yrd Mat Sub Used RIF Installer . | . . . Robots Hacked . | . . . Non-combat . | . . . Combat . | . . . Robot Hacks Applied . | . . . Relay Couplers Released . | . . . Fabnet Peak Effective % . | . . . Robots Rewired . | . . . Allies Hacked . | . . . Hacks Repelled . | . . . Allies | -11 -10 -10 -------- Run | Yrd Mat Sub Total Allies . | . . . Largest Group . | . . . Highest-Rated Group . | . . . Highest-Rated Ally . | . . . Total Orders . | . . . Ally Attacks . | . . . Total Damage . | . . . Kills . | . . . Allies Corrupted . | . . . Allies Melted . | . . . Intel | -11 -10 -10 ------- Run | Yrd Mat Sub Active Infowar (turns) 991 | 53 413 525 Optics 525 | . . 525 Seismic 466 | 53 413 . Robot Analysis Total . | . . . Derelict Logs Recovered 2 | . . 2 Drone Launches . | . . . Drone Recoveries . | . . . Exploration | -11 -10 -10 ------------- Run | Yrd Mat Sub Turns Passed 4479 | 191 1413 2875 Spaces Moved 2542 | 64 754 1724 Core . | . . . Treads 1612 | . 341 1271 Legs 438 | 64 374 . Wheels 476 | . 38 438 Hover . | . . . Flight 16 | . 1 15 Fastest Speed 95 | 120 95 107 Average Speed 148 | 120 153 147 Slowest Speed 260 | 120 260 240 Overloaded Moves . | . . . Propulsion Burnouts . | . . . Robots Hopped . | . . . Potential Cave-ins . | . . . Cave-ins Triggered . | . . . Exploration Rate (%) 51 | 5 92 58 Regions Visited 2 Branch Regions 1 Pre-discovered Areas 1 | . . 1 Known Exits Taken . | . . . Unknown Exits Taken 2 | 1 1 . Scrap Searched . | . . . Spaces Dug 1 | . . 1 Terrain Destroyed 6 | . 4 2 Melee . | . . . Projectile 2 | . . 2 AOE 4 | . 4 . Terrain Rammed 1 | . . 1 Walls Destroyed . | . . . Machines Disabled . | . . . Actions | -11 -10 -10 --------- Run | Yrd Mat Sub Total 2970 | 132 931 1907 Wait 88 | 7 40 41 Move 2540 | 63 753 1724 Hop . | . . . Pick Up 33 | 3 19 11 Fast Attach 7 | 1 4 2 Attach 15 | . 8 7 Detach 3 | . 2 1 Swap 27 | . 13 14 Drop 18 | 1 12 5 Fire 220 | 57 62 101 Melee . | . . . Ram 1 | . . 1 Kick . | . . . Crush 18 | . 18 . Escape Stasis . | . . . Rewire . | . . . Trap . | . . . Miscellaneous . | . . . Route ------- -11/Scrapyard -10/Materials (discovered 4 exits: [*Mat x2] / *Min / *Sub) -10/Subcaves (discovered 1 exit: *Mat) History --------- Turn | Location | Event 11 | -11/Scrapyard | Discovered new exit (range 2) 192 | -11/Scrapyard | Entered Materials 311 | -10/Materials | Build established: Mutant 339 | -10/Materials | Discovered new exit (range 9) 636 | -10/Materials | Lost 4 parts (2n1u1w) 870 | -10/Materials | Discovered new exit (range 11) 899 | -10/Materials | Identified exit to Mines 957 | -10/Materials | Lost 4 parts (1p1n1u1w) 983 | -10/Materials | Core integrity fell below 50% 1024 | -10/Materials | Lost 4 parts (1p3w) 1291 | -10/Materials | Discovered new exit (range 13) 1581 | -10/Materials | Discovered new exit (range 11) 1605 | -10/Materials | Entered Subcaves 1698 | -10/Subcaves | Learned location of 1 exit from Materials 1869 | -10/Subcaves | Learned location of Zion (-6) 1869 | -10/Subcaves | Met a Zionite searching for "candidates" 1893 | -10/Subcaves | Shifting Twisted Machinery released Scrap Shield 2071 | -10/Subcaves | Learned Materials security intel 2315 | -10/Subcaves | A swath of the cavern ceiling suddenly collapsed 2594 | -10/Subcaves | Discovered new exit (range 12) 2684 | -10/Subcaves | Identified exit to Materials 2863 | -10/Subcaves | Core integrity fell below 20% 3516 | -10/Subcaves | Visited 4L-MR0's lab 3543 | -10/Subcaves | Found Meta Core 3545 | -10/Subcaves | Attached Meta Core, gained temporary slots: Propulsion, Utility, Weapon 3879 | -10/Subcaves | Build established: Skirmisher 4331 | -10/Subcaves | Shifting Twisted Machinery released Battle Cannon 4391 | -10/Subcaves | A swath of the cavern ceiling suddenly collapsed 4400 | -10/Subcaves | Build established: Mutant 4480 | -10/Subcaves | Destroyed by CU-YSM(R) with Subdweller Machine Gun Last Messages --------------- 04244_ Acquired 25 matter. 04254_ H0-JIX(R) knocked back. 04257_ H0-JIX(R) destroyed. 04260_ LZ-TVC(R) destroyed. 04270_ Acquired 28 matter. 04273_ Acquired 34 matter. 04278_ Acquired Sub. Laser. 04280_ Acquired Sub. Monowheel. 04305_ 6IN:YQI1XGT:O|RFA2W8M8VNT9Z,PAS67L2WEV 04305_ Acquired Battle Cannon. 04322_ Dropped Hvy. Assault Rifle. Battle Cannon falls loose from the Twisted Machinery. 04359_ Acquired 5 matter. 04391_ Sub. Optics crushed. A swath of the cavern ceiling suddenly collapses. 04437_ Acquired Mak. Sword. 04474_ CU-YSM(R) knocked back. 04478_ Wheel destroyed. Map ----- +----------------------------------------------------+ | | | | | | | | | | | | | ?????????????????????????????????????????????????? | | ?????????????????????????????????????????????????? | | ?????????????????????????????????????????????????? | | ?????????????????????????????????????????????????? | | ?????????????????????????????????????????????????? | | ?????????????????????????????????????????????????? | | ?????????????????????????????????????????????????? | | ?????????????????????????????????????????????????? | | ?????????????????????????????????????????????????? | | ?????????????????????????????????????????????????? | | ?????????????????????????????????????????????????? | | ?????????????????????????????????????????????????? | | ?????????????????????????????????????????????????? | | ?????????????????????????????????????????????????? | | ??????????###????????????????????????????????????? | | #######???# #####????????????????????????????????? | | # ##??# ## #####?#####?##???????????????????? | | " ##?# # # ###"#%## # #?????????????????? | | # #" ### """""% ##?????????????????? | | ## ##" @R #?????????????????? | | =" #"### ### ## ## ## ## ##?????????????????? | | !##"#?## "#?############?# %#??????????????????? | | ### ##??#####???????????????" #??????????????????? | | #?#"#????????????????????????" "?????????????????? | | ?## ###??????????????????????? " ????????????????? | | ?#" #####????????????????????"" ???????????????? | | ###"# # #????????????????????##""??????????????? | | ###"# #??????????????????????????????????????? | | #?#"## #??????????????????????????????????????? | | ###?#""# #??????????????????????????????????????? | | # ####""# #??????????????????????????????????????? | | "#""##??????????????????????????????????????? | | " "#"#??????????????????????????????????????? | | # ## ####??????????????????????????????????????? | | ########?????????????????????????????????????????? | | #????????????????????????????????????????????????? | | ?????????????????????????????????????????????????? | | ?????????????????????????????????????????????????? | | ?????????????????????????????????????????????????? | | ?????????????????????????????????????????????????? | | ?????????????????????????????????????????????????? | | ?????????????????????????????????????????????????? | | ?????????????????????????????????????????????????? | | ?????????????????????????????????????????????????? | +----------------------------------------------------+ Best States ------------- Heat Dissipation 25 Energy Generation 17 Energy Capacity 250 Matter Stores 300 Matter Capacity 300 Sight Range 21 Terrain Scan Density 10 Additional Mass Support 6 Evasion (%) 55 Recoil Reduction 3 Item Schematics ----------------- None Robot Schematics ------------------ None Fabricated ------------ Nothing Repaired ---------- Nothing Studied --------- None Alien Tech Used ----------------- None Achievements -------------- Art Critic Challenges ------------ None Game ------ Seed MiningSwarmMonowheel Manual? 0 Play Time 00:27:11 Cumulative 38.8 hours Start 2025.12.27 @ 22:37:41 End 2025.12.27 @ 23:02:33 Sessions 1 Manual Loads 0 Difficulty Rogue Special Mode None Game No. 48 Rogue 48 Adventurer 0 Explorer 0 Win Type - Total 1 Types 1/0/0/0/0/0/0/0/0/0 Lore% 31 Gallery% 41 Achievement% 32 Wizard Run 0 Options --------- Layout 2 ASCII 0 Keyboard 1 Movement Numpad Keybinds 0 Fullscreen 1 Font 24/Smallcaps Map View 50x44 Zoom Use 0% Tactical HUD 1 Map Filters NONE Filters NONE Steam 1 RUN: 610d61b9-1d4e-4839-8f7c-421a9a0f163c